fUST/lending_fUST_20250802
["ID","MTS","AMOUNT","RATE_DAILY","PERIOD"]
[376776102,1754116253668,-460.0,0.00024657,10]
[376776103,1754116253678,-460.0,0.00024657,10]
[376776104,1754116253687,-460.0,0.00024657,10]
[376776105,1754116253696,-460.0,0.00024657,10]
[376776106,1754116253706,-460.0,0.00024657,10]
[376776107,1754116253715,-460.0,0.00024657,10]
[376776108,1754116253724,-460.0,0.00024657,10]
[376776109,1754116253734,-460.0,0.00024657,10]
[376776110,1754116253743,-740.58,0.00024657,10]
[376776111,1754116253752,-460.0,0.00024657,10]
[376776112,1754116253761,-460.0,0.00024657,10]
[376776113,1754116253771,-460.0,0.00024657,10]
[376776114,1754116253780,-740.58,0.00024657,10]
[376776115,1754116253789,-460.0,0.00024657,10]
[376776116,1754116253799,-460.0,0.00024657,10]
[376776117,1754116253808,-460.0,0.00024657,10]
[376776118,1754116253818,-740.58,0.00024657,10]
[376776119,1754116253827,-460.0,0.00024657,10]
[376776120,1754116253837,-740.58,0.00024657,10]
[376776121,1754116253846,-460.0,0.00024657,10]
[376776122,1754116253856,-740.58,0.00024657,10]
[376776123,1754116253866,-333.03900088,0.00024657,10]
[376776124,1754116253876,-460.0,0.00024657,10]
[376776125,1754116253885,-740.58,0.00024657,10]
[376776126,1754116253894,-460.0,0.00024657,10]
[376776127,1754116253906,-740.58,0.00024657,10]
[376776128,1754116253915,-460.0,0.00024657,10]
[376776129,1754116253924,-740.58,0.00024657,10]
[376776130,1754116253933,-460.0,0.00024657,10]
[376776131,1754116253942,-740.58,0.00024657,10]
[376776132,1754116253951,-288.68,0.00024657,10]
[376776133,1754116253960,-740.58,0.00024657,10]
[376776134,1754116253969,-460.0,0.00024657,10]
[376776135,1754116253978,-740.58,0.00024657,10]
[376776136,1754116253987,-740.58,0.00024657,10]
[376776137,1754116253996,-740.58,0.00024657,10]
[376776138,1754116254005,-460.0,0.00024657,10]
[376776139,1754116254014,-740.58,0.00024657,10]
[376776140,1754116254023,-740.58,0.00024657,10]
[376776141,1754116254032,-474.90919401,0.00024657,10]
[376776142,1754116254041,-740.58,0.00024657,10]
[376776143,1754116254051,-460.0,0.00024657,10]
[376776144,1754116254060,-740.58,0.00024657,10]
[376776145,1754116254069,-740.58,0.00024657,10]
[376776146,1754116254078,-740.58,0.00024657,10]
[376776147,1754116254087,-460.0,0.00024657,10]
[376776148,1754116254096,-740.58,0.00024657,10]
[376776149,1754116254105,-740.58,0.00024657,10]
[376776150,1754116254114,-740.58,0.00024657,10]
[376776151,1754116254123,-740.58,0.00024657,10]
[376776152,1754116254133,-740.68,0.00024657,10]
[376776153,1754116254143,-460.0,0.00024661,10]
[376776154,1754116254152,-460.0,0.00024661,10]
[376776155,1754116254162,-460.0,0.00024661,10]
[376776156,1754116254171,-1052.32,0.00024661,10]
[376776157,1754116254180,-701.77,0.00024672,10]
[376776158,1754116254189,-701.77,0.00024672,10]
[376776159,1754116254199,-701.77,0.00024672,10]
[376776160,1754116254208,-701.77,0.00024672,10]
[376776161,1754116254217,-701.90819643,0.00024672,10]
[376776162,1754116254226,-542.55430628,0.00024673,2]
[376776163,1754116254235,-500.59689588,0.00024673,2]
[376776164,1754116254244,-500.0,0.00024673,2]
[376776165,1754116254253,-500.0,0.00024673,2]
[376776166,1754116254262,-501.09641049,0.00024673,2]
[376776167,1754116254271,-500.0,0.00024673,2]
[376776168,1754116254280,-150.0,0.00024673,2]
[376776169,1754116254289,-500.0,0.00024673,2]
[376776170,1754116254299,-500.0,0.00024673,2]
[376776171,1754116254308,-502.99712507,0.00024673,2]
[376776172,1754116254317,-500.0,0.00024673,2]
[376776173,1754116254327,-500.0,0.00024673,2]
[376776174,1754116254335,-500.0,0.00024673,2]
[376776175,1754116254344,-501.09124422,0.00024673,2]
[376776176,1754116254354,-500.0,0.00024673,2]
[376776177,1754116254363,-501.44947203,0.00024673,2]
[376776178,1754116254372,-500.0,0.00024673,2]
[376776179,1754116254381,-423.28316058,0.00024673,2]
[376776180,1754116254390,-500.0,0.00024673,2]
[376776181,1754116254467,-1769.66446625,0.00024686,2]
[376776182,1754116254477,-460.0,0.00024698,10]
[376776183,1754116254486,-460.0,0.00024698,10]
[376776184,1754116254495,-172.37976267,0.00024698,10]
[376776185,1754116254517,-287.62023733,0.00024698,10]
[376776186,1754116254526,-460.0,0.00024698,10]
[376776187,1754116254536,-526.77,0.00024698,10]
[376776188,1754116254545,-594.66,0.00024698,10]
[376776189,1754116254555,-717.83,0.00024698,10]
[376776190,1754116254564,-1276.03,0.00024698,10]
[376776191,1754116254574,-482.97,0.00024698,10]
[376776192,1754116254583,-460.0,0.00024698,10]
[376776193,1754116254592,-460.0,0.00024698,10]
[376776194,1754116254601,-479.36,0.00024698,10]
[376776195,1754116254611,-866.95,0.00024698,10]
[376776196,1754116254620,-732.37,0.00024698,10]
[376776197,1754116254629,-1153.8,0.00024698,10]
[376776198,1754116254639,-260.71955946,0.00024698,10]
[376776199,1754116254649,-460.0,0.00024698,10]
[376776200,1754116254658,-1052.52,0.00024698,10]
[376776201,1754116254668,-683.56,0.00024698,10]
[376776202,1754116254678,-460.0,0.00024698,10]
[376776203,1754116254687,-460.0,0.00024698,10]
[376776204,1754116254697,-465.22,0.00024698,10]
[376776205,1754116254706,-3288.27,0.000247,7]
[376776206,1754116254715,-160.0,0.000247,7]
[376776207,1754116254725,-216.27517063,0.000247,7]
[376776208,1754116254735,-312.16666667,0.000247,7]
[376776209,1754116254744,-774.57,0.00024714,7]
[376776210,1754116254754,-660.0,0.0002474,2]
[376776211,1754116254763,-1769.66446625,0.0002475,2]
[376776212,1754116254773,-774.57,0.00024814,7]
[376776213,1754116254782,-1769.66446625,0.00024814,2]
[376776214,1754116254792,-678.7,0.00024846,6]
[376776215,1754116254800,-170.4289651,0.00024875,2]
[376776216,1754116254809,-460.0,0.00024897,10]
[376776217,1754116254818,-460.0,0.00024897,10]
[376776218,1754116254826,-460.0,0.00024897,10]
[376776219,1754116254835,-460.0,0.00024897,10]
[376776220,1754116254844,-526.77,0.00024897,10]
[376776221,1754116254853,-594.66,0.00024897,10]
[376776222,1754116254862,-717.83,0.00024897,10]
[376776223,1754116254871,-1276.03,0.00024897,10]
[376776224,1754116254880,-482.97,0.00024897,10]
[376776225,1754116254889,-460.0,0.00024897,10]
[376776226,1754116254900,-460.0,0.00024897,10]
[376776227,1754116254909,-479.36,0.00024897,10]
[376776228,1754116254918,-866.95,0.00024897,10]
[376776229,1754116254927,-732.37,0.00024897,10]
[376776230,1754116254937,-1153.8,0.00024897,10]
[376776231,1754116254946,-397.02,0.00024897,10]
[376776232,1754116254955,-1052.52,0.00024897,10]
[376776233,1754116254964,-683.56,0.00024897,10]
[376776234,1754116254973,-460.0,0.00024897,10]
[376776235,1754116254982,-155.99,0.00024897,10]
[376776236,1754116254991,-465.22,0.00024897,10]
[376776237,1754116255000,-460.0,0.00024898,10]
[376776238,1754116255009,-460.0,0.00024898,10]
[376776239,1754116255018,-460.0,0.00024898,10]
[376776240,1754116255027,-460.0,0.00024898,10]
[376776241,1754116255036,-1415.21,0.00024899,10]
[376776242,1754116255044,-1415.21,0.00024899,10]
[376776243,1754116255054,-460.0,0.00024899,10]
[376776244,1754116255063,-460.0,0.00024899,10]
[376776245,1754116255072,-460.0,0.00024899,10]
[376776246,1754116255081,-460.0,0.00024899,10]
[376776247,1754116255089,-460.0,0.00024899,10]
[376776248,1754116255099,-460.0,0.00024899,10]
[376776249,1754116255107,-1899.84,0.00024899,10]
[376776250,1754116255116,-1899.84,0.00024899,10]
[376776251,1754116255126,-460.0,0.00024899,10]
[376776252,1754116255134,-460.0,0.00024899,10]
[376776253,1754116255143,-1237.36,0.00024899,10]
[376776254,1754116255154,-1237.36,0.00024899,10]
[376776255,1754116255164,-233430.987074,0.000249,2]
[376776256,1754116255173,-774.57,0.00024914,7]
[376776257,1754116255182,-460.0,0.00024964,10]
[376776258,1754116255191,-460.0,0.00024964,10]
[376776259,1754116255200,-460.0,0.00024964,10]
[376776260,1754116255209,-460.0,0.00024964,10]
[376776261,1754116255218,-526.77,0.00024964,10]
[376776262,1754116255227,-594.66,0.00024964,10]
[376776263,1754116255241,-717.83,0.00024964,10]
[376776264,1754116255250,-1276.03,0.00024964,10]
[376776265,1754116255259,-482.97,0.00024964,10]
[376776266,1754116255268,-460.0,0.00024964,10]
[376776267,1754116255278,-460.0,0.00024964,10]
[376776268,1754116255287,-479.36,0.00024964,10]
[376776269,1754116255296,-866.95,0.00024964,10]
[376776270,1754116255306,-732.37,0.00024964,10]
[376776271,1754116255315,-1153.8,0.00024964,10]
[376776272,1754116255324,-1052.52,0.00024964,10]
[376776273,1754116255333,-683.56,0.00024964,10]
[376776274,1754116255342,-460.0,0.00024964,10]
[376776275,1754116255351,-465.22,0.00024964,10]
[376776276,1754116255361,-460.0,0.00024965,10]
[376776277,1754116255370,-460.0,0.00024965,10]
[376776278,1754116255379,-460.0,0.00024965,10]
[376776279,1754116255388,-460.0,0.00024965,10]
[376776280,1754116255397,-460.0,0.00024965,10]
[376776281,1754116255406,-460.0,0.00024965,10]
[376776282,1754116255415,-1052.32,0.00024965,10]
[376776283,1754116255425,-1052.32,0.00024965,10]
[376776284,1754116255434,-500.0,0.00024973,2]
[376776285,1754116255442,-501.67842827,0.00024973,2]
[376776286,1754116255452,-500.0,0.00024973,2]
[376776287,1754116255461,-150.74836106,0.00024973,2]
[376776288,1754116255470,-460.0,0.00024973,10]
[376776289,1754116255480,-460.0,0.00024973,10]
[376776290,1754116255489,-460.0,0.00024973,10]
[376776291,1754116255498,-460.0,0.00024973,10]
[376776292,1754116255507,-526.77,0.00024973,10]
[376776293,1754116255516,-594.66,0.00024973,10]
[376776294,1754116255526,-717.83,0.00024973,10]
[376776295,1754116255535,-1276.03,0.00024973,10]
[376776296,1754116255544,-482.97,0.00024973,10]
[376776297,1754116255553,-460.0,0.00024973,10]
[376776298,1754116255562,-322.48538329,0.00024973,10]
[376776299,1754116255572,-479.36,0.00024973,10]
[376776300,1754116255582,-866.95,0.00024973,10]
[376776301,1754116255591,-732.37,0.00024973,10]
[376776302,1754116255600,-1153.8,0.00024973,10]
[376776303,1754116255609,-1052.52,0.00024973,10]
[376776304,1754116255618,-683.56,0.00024973,10]
[376776305,1754116255628,-224.93533932,0.00024973,10]
[376776306,1754116255637,-465.22,0.00024973,10]
[376776307,1754116255709,-460.0,0.00024974,10]
[376776308,1754116255719,-465.1,0.00024974,10]
[376776309,1754116255727,-460.0,0.00024974,10]
[376776310,1754116255736,-460.0,0.00024974,10]
[376776311,1754116255745,-273.7728489,0.00024974,10]
[376776312,1754116255755,-460.0,0.00024974,10]
[376776313,1754116255764,-460.0,0.00024974,10]
[376776314,1754116255773,-460.0,0.00024974,10]
[376776315,1754116255783,-450.25502071,0.00024974,10]
[376776316,1754116255791,-127.32066443,0.00024974,10]
[376776317,1754116255882,-336.41000001,0.00024647,3]
[376776318,1754116348041,230.704085,0.00013699,2]
[376776320,1754116383283,400.0,0.00024658,120]
[376776321,1754116671635,1000.0,0.00027164,30]
[376776322,1754116677714,1000.0,0.00027164,30]
[376776323,1754116683636,1000.0,0.00027164,30]
[376776324,1754116692955,1000.0,0.00027164,30]
[376776325,1754116700850,1102.0,0.00027164,30]
[376776326,1754116709349,150.5,0.00024647,120]
[376776327,1754116709813,150.5,0.00024637,120]
[376776328,1754116709859,234.0,0.00024647,120]
[376776329,1754116710271,150.5,0.00024627,120]
[376776330,1754116710354,234.0,0.00024637,120]
[376776331,1754116710740,262.03,0.00024647,120]
[376776332,1754116710807,234.0,0.00024627,120]
[376776333,1754116713429,234.0,0.00024647,120]
[376776334,1754116713928,234.0,0.00024637,120]
[376776335,1754116714398,234.0,0.00024627,120]
[376776336,1754116983815,360.33640653,0.000244,120]
[376776337,1754117006304,400.0,0.00024658,120]
[376776338,1754117012796,1000.0,0.00026,120]
[376776339,1754117013992,1000.0,0.00026,120]
[376776340,1754117015309,1000.0,0.00026,120]
[376776341,1754117016311,1000.0,0.00026,120]
[376776342,1754117017388,1000.0,0.00026,120]
[376776343,1754117038875,231.31918389,0.00013699,2]
[376776344,1754117279411,723.0,0.00025,120]
[376776345,1754117313679,200.0,0.00024646,120]
[376776346,1754117314158,200.0,0.00024636,120]
[376776347,1754117314610,200.0,0.00024626,120]
[376776348,1754117317622,200.0,0.00024647,120]
[376776349,1754117318081,200.0,0.00024637,120]
[376776350,1754117318526,200.0,0.00024627,120]
[376776351,1754117318981,200.0,0.0002487,120]
[376776352,1754117319431,200.0,0.0002486,120]
[376776355,1754117338060,231.31918388,0.00013699,2]
[376776357,1754117429936,150.5,0.00024646,120]
[376776358,1754117430343,150.5,0.00024636,120]
[376776359,1754117430797,150.5,0.00024626,120]
[376776360,1754117431265,150.5,0.00024647,120]
[376776372,1754117431713,150.5,0.00024637,120]
[376776395,1754117432111,-1461.1012784,0.00019602,2]
[376776444,1754117437881,-3538.8987216,0.00019602,2]
[376776445,1754117437891,-2319.0,0.0002,2]
[376776446,1754117437900,-300.0,0.00020999,2]
[376776447,1754117437910,-5074.0,0.00021,10]
[376776448,1754117437919,-299.659418,0.00021105,2]
[376776449,1754117437928,-241.55711258,0.0002132,2]
[376776450,1754117437938,-167.0,0.0002137,4]
[376776451,1754117437947,-200.0,0.00021419,15]
[376776452,1754117437956,-200.0,0.00021419,15]
[376776453,1754117437965,-200.0,0.00021419,15]
[376776454,1754117437974,-200.0,0.00021419,15]
[376776455,1754117437984,-200.0,0.00021419,15]
[376776456,1754117437993,-216.27517063,0.00021816,2]
[376776457,1754117438003,-215.0795835,0.00021817,2]
[376776458,1754117438012,-231.57249719,0.00021965,2]
[376776459,1754117438021,-841.70373825,0.00021966,2]
[376776460,1754117438035,-160.0,0.00021966,2]
[376776461,1754117438044,-160.0,0.00021966,2]
[376776462,1754117438053,-6367.77903436,0.00021967,2]
[376776463,1754117438062,-2439.9027095,0.00021977,2]
[376776464,1754117438071,-420.0,0.00022842,2]
[376776465,1754117438079,-436.7,0.00022897,4]
[376776466,1754117438088,-547.25841176,0.00023,2]
[376776467,1754117438097,-436.7,0.00023285,5]
[376776468,1754117438106,-500.0,0.00023344,2]
[376776469,1754117438115,-200.0,0.00023511,15]
[376776470,1754117438123,-200.0,0.00023511,15]
[376776471,1754117438132,-200.0,0.00023511,15]
[376776472,1754117438141,-200.0,0.00023511,15]
[376776473,1754117438151,-200.0,0.00023511,15]
[376776474,1754117438160,-200.0,0.00023511,15]
[376776475,1754117438169,-200.0,0.00023511,15]
[376776476,1754117438179,-436.7,0.00023673,5]
[376776477,1754117438187,-170.81128774,0.00023961,2]
[376776478,1754117438197,-1000.0,0.00024,24]
[376776479,1754117438206,-436.7,0.00024061,5]
[376776480,1754117438215,-500.0,0.0002444,2]
[376776481,1754117438224,-436.7,0.00024449,6]
[376776482,1754117438232,-533.399,0.00024547,7]
[376776483,1754117438241,-179.00278406,0.00024547,7]
[376776484,1754117438250,-1064.05,0.00024547,3]
[376776485,1754117438258,-532.02,0.00024547,3]
[376776486,1754117438267,-266.01,0.00024547,3]
[376776487,1754117438276,-798.08,0.00024547,3]
[376776488,1754117438285,-500.0,0.00024556,2]
[376776489,1754117438293,-494.42953198,0.00024556,2]
[376776490,1754117438302,-500.0,0.00024556,2]
[376776491,1754117438311,-500.0,0.00024556,2]
[376776492,1754117438320,-500.0,0.00024556,2]
[376776493,1754117438329,-500.0,0.00024556,2]
[376776494,1754117438338,-409.67427218,0.00024556,2]
[376776495,1754117438347,-500.0,0.00024556,2]
[376776496,1754117438356,-219.28820621,0.00024556,2]
[376776497,1754117438365,-500.0,0.00024556,2]
[376776498,1754117438373,-500.0,0.00024556,2]
[376776499,1754117438382,-500.0,0.00024556,2]
[376776500,1754117438391,-198.10864184,0.00024556,2]
[376776501,1754117438399,-504.44107622,0.00024556,2]
[376776502,1754117438408,-500.0,0.00024556,2]
[376776503,1754117438417,-500.0,0.00024556,2]
[376776504,1754117438426,-500.0,0.00024556,2]
[376776505,1754117438434,-500.0,0.00024556,2]
[376776506,1754117438443,-500.0,0.00024556,2]
[376776507,1754117438452,-500.0,0.00024556,2]
[376776508,1754117438461,-500.0,0.00024556,2]
[376776509,1754117438470,-500.0,0.00024556,2]
[376776510,1754117438479,-453.6936178,0.00024556,2]
[376776511,1754117438487,-500.0,0.00024556,2]
[376776512,1754117438496,-500.0,0.00024556,2]
[376776513,1754117438505,-500.0,0.00024556,2]
[376776514,1754117438514,-341.32100292,0.00024556,2]
[376776515,1754117438523,-500.0,0.00024556,2]
[376776516,1754117438531,-500.0,0.00024556,2]
[376776517,1754117438540,-500.0,0.00024556,2]
[376776518,1754117438549,-500.0,0.00024556,2]
[376776519,1754117438558,-500.0,0.00024556,2]
[376776520,1754117438567,-500.0,0.00024556,2]
[376776521,1754117438576,-500.0,0.00024556,2]
[376776522,1754117438584,-500.0,0.00024556,2]
[376776523,1754117438593,-500.0,0.00024556,2]
[376776524,1754117438602,-500.0,0.00024556,2]
[376776525,1754117438611,-500.0,0.00024556,2]
[376776526,1754117438619,-500.0,0.00024556,2]
[376776527,1754117438628,-500.0,0.00024556,2]
[376776528,1754117438637,-500.0,0.00024556,2]
[376776529,1754117438646,-500.0,0.00024556,2]
[376776530,1754117438654,-500.0,0.00024556,2]
[376776531,1754117438665,-500.0,0.00024556,2]
[376776532,1754117438674,-500.0,0.00024556,2]
[376776533,1754117438683,-500.0,0.00024556,2]
[376776534,1754117438692,-500.0,0.00024556,2]
[376776535,1754117438701,-500.0,0.00024556,2]
[376776536,1754117438710,-500.0,0.00024556,2]
[376776537,1754117438719,-500.0,0.00024556,2]
[376776538,1754117438728,-500.0,0.00024556,2]
[376776539,1754117438737,-500.0,0.00024556,2]
[376776540,1754117438747,-500.0,0.00024556,2]
[376776541,1754117438756,-500.0,0.00024556,2]
[376776542,1754117438765,-500.0,0.00024556,2]
[376776543,1754117438774,-500.0,0.00024556,2]
[376776544,1754117438783,-500.0,0.00024556,2]
[376776545,1754117438793,-500.0,0.00024556,2]
[376776546,1754117438802,-500.0,0.00024556,2]
[376776547,1754117438812,-500.0,0.00024556,2]
[376776548,1754117438822,-500.0,0.00024556,2]
[376776549,1754117438831,-500.0,0.00024556,2]
[376776550,1754117438840,-500.0,0.00024556,2]
[376776551,1754117438849,-500.0,0.00024556,2]
[376776552,1754117438858,-453.79635478,0.00024556,2]
[376776553,1754117438867,-500.0,0.00024556,2]
[376776554,1754117438877,-500.0,0.00024556,2]
[376776555,1754117438886,-500.0,0.00024556,2]
[376776556,1754117438895,-500.0,0.00024556,2]
[376776557,1754117438904,-500.0,0.00024556,2]
[376776558,1754117438914,-235.96401872,0.00024556,2]
[376776559,1754117438922,-499.99999999,0.00024556,2]
[376776560,1754117438931,-212534.73381597,0.00024557,2]
[376776561,1754117438940,-151.0,0.000246,10]
[376776562,1754117438949,-500.0,0.00024656,2]
[376776563,1754117438958,-500.0,0.00024656,2]
[376776564,1754117438967,-500.0,0.00024656,2]
[376776565,1754117438976,-307.50372011,0.00024656,2]
[376776566,1754117438985,-500.0,0.00024656,2]
[376776567,1754117438994,-500.0,0.00024656,2]
[376776568,1754117439003,-577.71486523,0.00024656,2]
[376776569,1754117439012,-500.0,0.00024656,2]
[376776570,1754117439021,-500.0,0.00024656,2]
[376776571,1754117439036,-500.0,0.00024656,2]
[376776572,1754117439045,-500.0,0.00024656,2]
[376776573,1754117439055,-500.0,0.00024656,2]
[376776574,1754117439064,-500.0,0.00024656,2]
[376776575,1754117439074,-500.0,0.00024656,2]
[376776576,1754117439084,-500.0,0.00024656,2]
[376776577,1754117439093,-500.0,0.00024656,2]
[376776578,1754117439103,-500.0,0.00024656,2]
[376776579,1754117439113,-500.0,0.00024656,2]
[376776580,1754117439122,-500.0,0.00024656,2]
[376776581,1754117439131,-500.0,0.00024656,2]
[376776582,1754117439140,-500.0,0.00024656,2]
[376776583,1754117439149,-500.0,0.00024656,2]
[376776584,1754117439167,-550.0,0.00024656,2]
[376776585,1754117439178,-500.0,0.00024656,2]
[376776586,1754117439188,-500.0,0.00024656,2]
[376776587,1754117439197,-500.0,0.00024656,2]
[376776588,1754117439206,-460.0,0.00024657,10]
[376776589,1754117439216,-460.0,0.00024657,10]
[376776590,1754117439225,-200.69,0.00024657,10]
[376776591,1754117439235,-460.0,0.00024657,10]
[376776592,1754117439244,-460.0,0.00024657,10]
[376776593,1754117439253,-460.0,0.00024657,10]
[376776594,1754117439263,-460.0,0.00024657,10]
[376776595,1754117439273,-460.0,0.00024657,10]
[376776596,1754117439283,-460.0,0.00024657,10]
[376776597,1754117439292,-571.33,0.00024657,10]
[376776598,1754117439301,-460.0,0.00024657,10]
[376776599,1754117439311,-460.0,0.00024657,10]
[376776600,1754117439320,-460.0,0.00024657,10]
[376776601,1754117439330,-460.0,0.00024657,10]
[376776602,1754117439339,-460.0,0.00024657,10]
[376776603,1754117439348,-215.79933557,0.00024657,10]
[376776604,1754117439358,-460.0,0.00024657,10]
[376776605,1754117439368,-460.0,0.00024657,10]
[376776606,1754117439377,-460.0,0.00024657,10]
[376776607,1754117439387,-460.0,0.00024657,10]
[376776608,1754117439396,-460.0,0.00024657,10]
[376776609,1754117439406,-460.0,0.00024657,10]
[376776610,1754117439417,-460.0,0.00024657,10]
[376776611,1754117439427,-460.0,0.00024657,10]
[376776612,1754117439436,-460.0,0.00024657,10]
[376776613,1754117439445,-460.0,0.00024657,10]
[376776614,1754117439455,-460.0,0.00024657,10]
[376776615,1754117439465,-460.0,0.00024657,10]
[376776616,1754117439474,-460.0,0.00024657,10]
[376776617,1754117439484,-227.61,0.00024657,10]
[376776618,1754117439493,-460.0,0.00024657,10]
[376776619,1754117439503,-394.01323923,0.00024657,10]
[376776620,1754117439512,-248.68294888,0.00024657,10]
[376776621,1754117439522,-460.0,0.00024657,10]
[376776622,1754117439531,-460.0,0.00024657,10]
[376776623,1754117439540,-460.0,0.00024657,10]
[376776625,1754117439550,-460.0,0.00024657,10]
[376776626,1754117439559,-460.0,0.00024657,10]
[376776627,1754117439568,-460.0,0.00024657,10]
[376776628,1754117439577,-460.0,0.00024657,10]
[376776629,1754117439587,-460.0,0.00024657,10]
[376776630,1754117439596,-198.02,0.00024657,10]
[376776631,1754117439605,-460.0,0.00024657,10]
[376776632,1754117439614,-460.0,0.00024657,10]
[376776633,1754117439623,-460.0,0.00024657,10]
[376776634,1754117439632,-460.0,0.00024657,10]
[376776635,1754117439642,-486.1,0.00024657,10]
[376776636,1754117439651,-460.0,0.00024657,10]
[376776637,1754117439661,-460.0,0.00024657,10]
[376776638,1754117439670,-460.0,0.00024657,10]
[376776639,1754117439680,-460.0,0.00024657,10]
[376776641,1754117439689,-460.0,0.00024657,10]
[376776643,1754117439698,-460.0,0.00024657,10]
[376776645,1754117439707,-460.0,0.00024657,10]
[376776647,1754117439717,-460.0,0.00024657,10]
[376776649,1754117439860,-579.90570738,0.00024657,10]
[376776650,1754117439870,-460.0,0.00024657,10]
[376776651,1754117439880,-460.0,0.00024657,10]
[376776652,1754117439889,-185.26,0.00024657,10]
[376776653,1754117439898,-460.0,0.00024657,10]
[376776654,1754117439908,-460.0,0.00024657,10]
[376776655,1754117439918,-460.0,0.00024657,10]
[376776656,1754117439927,-460.0,0.00024657,10]
[376776657,1754117439937,-460.0,0.00024657,10]
[376776658,1754117439946,-460.0,0.00024657,10]
[376776659,1754117439955,-589.2,0.00024657,10]
[376776660,1754117439965,-460.0,0.00024657,10]
[376776661,1754117439974,-460.0,0.00024657,10]
[376776662,1754117439983,-460.0,0.00024657,10]
[376776663,1754117439992,-460.0,0.00024657,10]
[376776664,1754117440004,-460.0,0.00024657,10]
[376776665,1754117440013,-460.0,0.00024657,10]
[376776666,1754117440022,-485.68014089,0.00024657,10]
[376776667,1754117440036,-460.47789739,0.00024657,10]
[376776668,1754117440046,-460.0,0.00024657,10]
[376776669,1754117440055,-460.0,0.00024657,10]
[376776670,1754117440064,-460.0,0.00024657,10]
[376776671,1754117440074,-172.68,0.00024657,10]
[376776672,1754117440083,-460.0,0.00024657,10]
[376776673,1754117440092,-460.0,0.00024657,10]
[376776674,1754117440102,-460.0,0.00024657,10]
[376776675,1754117440111,-465.98958634,0.00024657,10]
[376776676,1754117440120,-460.0,0.00024657,10]
[376776677,1754117440129,-460.0,0.00024657,10]
[376776678,1754117440138,-460.0,0.00024657,10]
[376776679,1754117440147,-365.71647281,0.00024657,10]
[376776680,1754117440156,-321.47376079,0.00024657,7]
[376776681,1754117440166,-460.0,0.00024657,10]
[376776682,1754117440175,-460.0,0.00024657,10]
[376776683,1754117440185,-460.0,0.00024657,10]
[376776685,1754117440194,-460.0,0.00024657,10]
[376776686,1754117440203,-460.0,0.00024657,10]
[376776687,1754117440212,-460.0,0.00024657,10]
[376776689,1754117440222,-460.0,0.00024657,10]
[376776690,1754117440230,-460.0,0.00024657,10]
[376776691,1754117440239,-460.0,0.00024657,10]
[376776692,1754117440251,-529.58497443,0.00024657,10]
[376776693,1754117440260,-461.97274024,0.00024657,10]
[376776694,1754117440269,-460.0,0.00024657,10]